Cogmind - Beta 16.1 @@@ ROGUE MODE // 2026.04.19 @ 13:46:37 Player: Thqwib-Linux Result: Destroyed by DAS Turret with DAS Cannon Performance ------------- Evolutions (0) 0 Regions Visited (3) 600 Robots Destroyed (24) 120 Value Destroyed (539) 539 Prototype IDs (23) 460 Alien Tech Used (0) 0 Bonus (249) 249 TOTAL SCORE: 1968 Bonus ------- Aligned with FarCom 300 Friendly Fire -51 Cogmind --------- Core Integrity 0/250 Matter 285/300 Energy 100/100 System Corruption 3% Temperature Cool (0) Movement Treading (320) Ox2 Location -10/Exiles Parts ------- > --- POWER (1) -------- (None) > --- PROPULSION (2) --- Light Treads > --- UTILITY (2) ------ High-capacity Storage Unit Targeting Computer > --- WEAPON (2) ------- Small Laser > --- INVENTORY (20) --- Improved Ion Engine Improved Ion Engine Light Treads Light Treads Improved Heat Sink Seismic Detector Utility Shielding Light Armor Plating Light Armor Plating Particle Gun Spread Laser Spread Laser Light Assault Rifle Light Assault Rifle AWS/Gauss Longsword +1 Peak State ------------ > --- POWER ------------ Improved Ion Engine > --- PROPULSION ------- Light Treads Compact Wheel > --- UTILITY ---------- High-capacity Storage Unit Targeting Computer > --- WEAPON ----------- Small Laser Particle Gun > --- INVENTORY -------- Improved Ion Engine Improved Ion Engine Light Treads Light Treads Light Treads Improved Heat Sink Seismic Detector Utility Shielding Light Armor Plating Light Armor Plating Small Laser Spread Laser Spread Laser Light Assault Rifle Light Assault Rifle AWS/Gauss Longsword +1 [Rating: 13] Favorites ----------- Power Improved Ion Engine Engine Improved Ion Engine Propulsion Light Treads Treads Light Treads Leg Aluminum Leg Wheel Compact Wheel Utility Targeting Computer Device Seismic Detector Storage High-capacity Storage Unit Processor Targeting Computer Weapon Small Laser Energy Gun Small Laser Ballistic Gun Assault Rifle Slashing Weapon Mining Claw Build | -11 -10 -10 -10 ------- Run | Yrd Mat Min Exi Slots Evolved . | . . . . Power . | . . . . Propulsion . | . . . . Utility . | . . . . Weapon . | . . . . Parts Attached 17 | 3 13 . 1 Power 2 | . 2 . . Engine 2 | . 2 . . Core . | . . . . Reactor . | . . . . Propulsion 6 | 2 3 . 1 Treads 4 | 1 2 . 1 Leg . | . . . . Wheel 2 | 1 1 . . Hover . | . . . . Flight . | . . . . Utility 4 | 1 3 . . Device 1 | 1 . . . Storage 2 | . 2 . . Processor 1 | . 1 . . Hackware . | . . . . Protection . | . . . . Artifact . | . . . . Weapon 5 | . 5 . . Energy Gun 4 | . 4 . . Energy Cannon . | . . . . Ballistic Gun . | . . . . Ballistic Cannon . | . . . . Launcher . | . . . . Special Weapon . | . . . . Impact Weapon . | . . . . Slashing Weapon 1 | . 1 . . Piercing Weapon . | . . . . Special Melee Weapon . | . . . . Unidentified Prototypes . | . . . . Parts Lost 6 | . 3 . 3 Power . | . . . . Propulsion 3 | . 1 . 2 Utility . | . . . . Weapon 3 | . 2 . 1 Highest Loss Streak 3 | . 3 . 3 To Critical Strikes . | . . . . Average Backups 12 | 3 11 16 16 Power 1 | 1 1 2 2 Propulsion 2 | 2 3 3 2 Utility 4 | . 4 5 5 Weapon 3 | . 2 6 6 Tool/Special . | . . . . Unused Backups 26 | 4 8 . 14 Power 5 | . 3 . 2 Propulsion 8 | 4 2 . 2 Utility 7 | . 3 . 4 Weapon 6 | . . . 6 Tool/Special . | . . . . Average Slot Usage (%) 99 | . 99 100 100 Engine 14 | . 14 14 14 Treads 13 | . 13 14 14 Wheel 13 | . 13 14 13 Device 1 | . 1 . . Storage 14 | . 14 14 14 Processor 12 | . 12 14 14 Energy Gun 19 | . 16 28 28 Ballistic Gun 8 | . 10 . . Peak Build Rating 13 | 7 10 10 13 Average Rating 8 | 6 8 10 10 On Entrance 8 | 6 7 10 10 Avg Prop Armor Cover (%) 13 | 12 13 14 14 Naked Turns . | . . . . Heaviest Build 51 | 13 50 49 51 Greatest Support 40 | 16 20 16 40 Greatest Overweight (x) 3 | . 3 3 3 Average Overweight (x) 2 | . 2 3 2 Largest Inventory Capacity 20 | 8 20 20 20 Average Capacity 18 | 8 17 20 20 Most Carried 19 | 5 18 16 19 Average Carried 12 | 3 11 16 16 Final Capacity 20 | 8 20 20 20 Final Carried 17 | 3 16 16 17 Class Distribution -------------------- 84% | Mutant 15% | Scavenger-Mutant Dominant Class ---------------- Mutant | -10/Materials Mutant | -10/Mines Mutant | -10/Exiles Resources | -11 -10 -10 -10 ----------- Run | Yrd Mat Min Exi Matter Collected 661 | 284 377 . . Remotely . | . . . . Salvage Created 841 | 87 754 . . Parts 55 | 3 52 . . Haulers Intercepted 1 | . 1 . . Recyclers Shooed . | . . . . Parts Field Recycled . | . . . . Retrieved Matter . | . . . . Parts Self-Destructed . | . . . . Prevented . | . . . . Parts Restored . | . . . . Kills | -11 -10 -10 -10 ------- Run | Yrd Mat Min Exi Combat Hostiles Destroyed 15 | . 15 . . Melee 1 | . 1 . . Guns 14 | . 14 . . Classes Destroyed 8 | 2 6 . . Worker 2 | . 2 . . Builder 1 | . 1 . . Tunneler 3 | 1 2 . . Hauler 1 | . 1 . . Recycler 1 | 1 . . . Operator 1 | . 1 . . Swarmer 3 | . 3 . . Grunt 12 | . 12 . . Best Kill Streak 3 | 1 3 . . Combat Bots Only 2 | . 2 . . Max Kills in Single Turn 1 | 1 1 . . Gunslinging . | . . . . Exploded . | . . . . Melee 1 | . 1 . . Uniques/NPCs Destroyed 1 | . . . 1 EX-BIN (-10/Exiles) Combat | -11 -10 -10 -10 -------- Run | Yrd Mat Min Exi Hostile Shots Fired 103 | . 77 . 26 Missed 26 | . 20 . 6 Hits 77 | . 57 . 20 Projectile 77 | . 57 . 20 Critical Strikes 2 | . . . 2 Damage Taken 1132 | . 687 . 445 Core 261 | . 140 . 121 Absorbed by Shields . | . . . . Regen/Repaired (Parts) 70 | . 70 . . Core Remaining (%) 100 | 100 . . . Volleys Fired 87 | 9 76 . 2 Largest 2 | 2 2 . 1 Hottest 105 | 40 105 . 65 Shots Fired 170 | 18 150 . 2 Gun 170 | 18 150 . 2 Cannon . | . . . . Launcher . | . . . . Special . | . . . . Kinetic 102 | 18 84 . . Thermal 68 | . 66 . 2 Explosive . | . . . . Electromagnetic . | . . . . Robot Hit Streak 17 | 7 17 . 17 Robot Miss Streak 4 | 2 4 . . Penetration Max . | . . . . Secondary Targets . | . . . . Shots Hit Robots 121 | 12 108 . 1 Core Hits 46 | 3 42 . 1 Critical Kills . | . . . . Critical Parts Destroyed . | . . . . Critical Strikes . | . . . . Melee Attacks 4 | . 4 . . Impact . | . . . . Slashing 4 | . 4 . . Piercing . | . . . . Sneak Attacks . | . . . . Combat Hostiles . | . . . . Follow-up Attacks . | . . . . Damage Inflicted 1507 | 160 1330 . 17 Guns 1460 | 160 1283 . 17 Cannons . | . . . . Explosions . | . . . . Melee 47 | . 47 . . Ramming . | . . . . Kinetic 874 | 160 714 . . Thermal 586 | . 569 . 17 Explosive . | . . . . Electromagnetic . | . . . . Impact . | . . . . Slashing 47 | . 47 . . Piercing . | . . . . Highest Corruption 3 | . . . 3 Average Corruption 2 | . . . 2 Corruption Purged . | . . . . Corruption Blocked . | . . . . Effects 1 | . . . 1 Parts Rejected 1 | . . . 1 Overload Shots . | . . . . Overflow Damage . | . . . . Projectiles . | . . . . Explosions . | . . . . Melee . | . . . . Knockbacks . | . . . . Impact . | . . . . Kinetic . | . . . . Secondary . | . . . . Self-Inflicted Damage . | . . . . Shots . | . . . . Rammed . | . . . . Targets Rammed . | . . . . Kicked . | . . . . Crushed . | . . . . Highest Temperature 150 | . 150 . 26 Average Temperature 39 | . 40 . 15 Received Heat Transfer 345 | . 345 . . Siege Activations . | . . . . Martial Activations . | . . . . Shielding Activations . | . . . . Robots Disrupted . | . . . . Combat Hostiles . | . . . . Robots Corrupted . | . . . . Combat Hostiles . | . . . . Parts Fried . | . . . . Impact Corruptions . | . . . . Robots Melted . | . . . . Combat Hostiles . | . . . . Parts Melted 2 | . 2 . . Heat Transferred 1324 | . 1287 . 37 Parts Sabotaged . | . . . . Parts Stolen . | . . . . Parts Stripped . | . . . . Power Chain Reactions . | . . . . Alert | -11 -10 -10 -10 ------- Run | Yrd Mat Min Exi Maximum Alert Level . | . . . . Low Security (%) 100 | 100 100 100 . Level 1 . | . . . . Level 2 . | . . . . Level 3 . | . . . . Level 4 . | . . . . Level 5 . | . . . . High Security . | . . . . Max Security . | . . . . Peak Influence 152 | 5 152 9 . Initial 9 | . . 9 . Average 34 | 2 36 2 . Influence Increases 563 | 10 553 . . Destroy 0b10 Robot/C 300 | . 300 . . Destroy 0b10 Robot/NC 45 | 10 35 . . Destroy Leader 72 | . 72 . . Successful Hack 10 | . 10 . . Select Force Hacks 60 | . 60 . . Disable Machine 15 | . 15 . . Destroy Structure 1 | . 1 . . Lose Combat Pursuer 60 | . 60 . . Influence Decreases 563 | 10 528 25 . Entered New Map 16 | . . 16 . Time Decay 391 | 10 372 9 . Lost Part 20 | . 20 . . Purge Threat 136 | . 136 . . Squads Dispatched 5 | . 4 1 . Investigation 3 | . 3 . . Extermination . | . . . . Reinforcement 1 | . 1 . . Assault 1 | . . 1 . Garrison . | . . . . Intercept . | . . . . Searches Triggered . | . . . . Construction Impeded . | . . . . Haulers Reinforced . | . . . . Active Scanning Responses . | . . . . Cargo Convoy Interrupts . | . . . . Stealth | -11 -10 -10 -10 --------- Run | Yrd Mat Min Exi Distress Signals 4 | . 4 . . Communications Jammed . | . . . . Distress Signals . | . . . . Times Spotted 32 | . 31 . 1 Peak Tracking Total 6 | . 6 . 4 Tactical Retreats 3 | . 3 . . Traps | -11 -10 -10 -10 ------- Run | Yrd Mat Min Exi Traps Triggered 1 | . 1 . . Indirectly . | . . . . Trap Hack Attempts . | . . . . Triggered . | . . . . Disarmed 1 | . 1 . . Reprogrammed . | . . . . Reused . | . . . . Traps Extracted . | . . . . Installed . | . . . . Triggered . | . . . . Machines | -11 -10 -10 -10 ---------- Run | Yrd Mat Min Exi Machines Disabled 2 | . 1 . 1 Max in Single Turn 1 | . 1 . 1 Machines Repaired . | . . . . Machines Dismantled . | . . . . Machines Sabotaged . | . . . . Overloaded Fab Kills . | . . . . Hacking | -11 -10 -10 -10 --------- Run | Yrd Mat Min Exi Machines Accessed 11 | . 9 . 2 Terminals 6 | . 6 . . Fabricators . | . . . . Repair Stations 1 | . 1 . . Recycling Units 2 | . 2 . . Scanalyzers . | . . . . Garrison Access . | . . . . Total Hacks 26 | . 24 . 2 Successful 16 | . 14 . 2 Failed 10 | . 10 . . Catastrophic 2 | . 2 . . Database Lockouts . | . . . . Manual 17 | . 16 . 1 Terminals 18 | . 18 . . Fabricators . | . . . . Repair Stations 4 | . 4 . . Recycling Units 2 | . 2 . . Scanalyzers . | . . . . Garrison Access . | . . . . Terminal Hacks 6 | . 4 . 2 Record 1 | . . . 1 Unreport Threat 1 | . 1 . . Disarm Traps 1 | . 1 . . Transport Status 1 | . 1 . . Hauler Manifests 1 | . 1 . . Proto ID Catalog 1 | . . . 1 Fabricator Hacks . | . . . . Repair Station Hacks 3 | . 3 . . Scan Component 2 | . 2 . . Repair 1 | . 1 . . Recycling Unit Hacks . | . . . . Scanalyzer . | . . . . Garrison Access Hacks . | . . . . Unauthorized Hacks 7 | . 7 . . Terminals 5 | . 5 . . Botnet 5 | . 5 . . Fabricators . | . . . . Repair Stations . | . . . . Recycling Units 2 | . 2 . . Tunnel 2 | . 2 . . Scanalyzers . | . . . . Garrison Access . | . . . . Data Cores Recovered . | . . . . Used . | . . . . Hacking Detections 7 | . 7 . . Full Trace Events . | . . . . Feedback Events . | . . . . Feedback Blocked . | . . . . Robot Schematics Acquired . | . . . . Robots Built . | . . . . Authchips . | . . . . Time . | . . . . Total Robot Build Rating . | . . . . Part Schematics Acquired . | . . . . Parts Built . | . . . . Authchips . | . . . . Time . | . . . . Total Part Build Rating . | . . . . Part Studies Acquired . | . . . . Parts Repaired 1 | . 1 . . Time 26 | . 26 . . Parts Recycled . | . . . . Recycled Matter . | . . . . Retrieved Matter . | . . . . Retrieved Components . | . . . . Parts Scanalyzed . | . . . . Part Schematics Acquired . | . . . . Parts Damaged . | . . . . Bothacking | -11 -10 -10 -10 ------------ Run | Yrd Mat Min Exi Used RIF Installer . | . . . . Robots Hacked . | . . . . Non-combat . | . . . . Combat . | . . . . Robot Hacks Applied . | . . . . Relay Couplers Released . | . . . . Fabnet Peak Effective % . | . . . . Robots Rewired . | . . . . Allies Hacked . | . . . . Hacks Repelled . | . . . . Allies | -11 -10 -10 -10 -------- Run | Yrd Mat Min Exi Total Allies 1 | . . 1 . Largest Group 1 | . . 1 1 Highest-Rated Group 31 | . . 31 31 Highest-Rated Ally 31 | . . 31 31 Total Orders . | . . . . Ally Attacks 3 | . . . 3 Total Damage 24 | . . . 24 Kills 1 | . . . 1 Allies Corrupted . | . . . . Allies Melted . | . . . . Intel | -11 -10 -10 -10 ------- Run | Yrd Mat Min Exi Active Infowar (turns) 131 | 10 121 . . Seismic 131 | 10 121 . . Robot Analysis Total . | . . . . Derelict Logs Recovered 1 | . . 1 . Drone Launches . | . . . . Drone Recoveries . | . . . . Exploration | -11 -10 -10 -10 ------------- Run | Yrd Mat Min Exi Turns Passed 1787 | 63 1310 58 356 Spaces Moved 1033 | 31 726 41 235 Core . | . . . . Treads 6 | . 1 . 5 Legs . | . . . . Wheels 1027 | 31 725 41 230 Hover . | . . . . Flight . | . . . . Fastest Speed 100 | 100 100 145 145 Average Speed 133 | 100 130 145 147 Slowest Speed 240 | 100 240 145 240 Overloaded Moves . | . . . . Propulsion Burnouts . | . . . . Robots Hopped . | . . . . Potential Cave-ins . | . . . . Cave-ins Triggered . | . . . . Exploration Rate (%) 42 | 4 89 16 61 Regions Visited 3 Branch Regions 2 Pre-discovered Areas 3 | . 2 . 1 Known Exits Taken . | . . . . Unknown Exits Taken 3 | 1 1 1 . Scrap Searched . | . . . . Spaces Dug . | . . . . Terrain Destroyed . | . . . . Melee . | . . . . Projectile . | . . . . AOE . | . . . . Terrain Rammed . | . . . . Walls Destroyed . | . . . . Machines Disabled . | . . . . Actions | -11 -10 -10 -10 --------- Run | Yrd Mat Min Exi Total 1262 | 45 934 40 243 Wait 82 | . 82 . . Move 1030 | 30 725 40 235 Hop . | . . . . Pick Up 20 | . 18 . 2 Fast Attach 6 | 1 5 . . Attach 2 | . 1 . 1 Detach 2 | . 2 . . Swap 12 | 2 8 . 2 Drop 17 | 3 13 . 1 Fire 87 | 9 76 . 2 Melee 4 | . 4 . . Ram . | . . . . Kick . | . . . . Crush . | . . . . Escape Stasis . | . . . . Rewire . | . . . . Trap . | . . . . Miscellaneous . | . . . . Route ------- -11/Scrapyard -10/Materials (discovered 5 exits: [*Mat x3] / [*Min] / [*Sub]) -10/Mines -10/Exiles (discovered 1 exit: [*Min]) History --------- Turn | Location | Event 15 | -11/Scrapyard | Discovered new exit (range 2) 64 | -11/Scrapyard | Entered Materials 301 | -10/Materials | Build established: Mutant 479 | -10/Materials | Discovered new exit (range 10) 600 | -10/Materials | Lost 3 parts (1n2w) 659 | -10/Materials | Discovered new exit (range 15) 785 | -10/Materials | Discovered new exit (range 15) 882 | -10/Materials | Discovered new exit (range 10) 982 | -10/Materials | Core integrity fell below 50% 1207 | -10/Materials | Discovered new exit (range 8) 1242 | -10/Materials | Repaired Lgt. Treads 1374 | -10/Materials | Entered Mines 1375 | -10/Mines | Met a Derelict testing a Signal Generator 1427 | -10/Mines | Deemed a non-threat by the Exiles lab entrance 1427 | -10/Mines | Discovered new exit (range 5) 1432 | -10/Mines | Entered Exiles 1432 | -10/Exiles | Accompanied by 1 ally 1467 | -10/Exiles | Met 8R-AWN 1493 | -10/Exiles | Met EX-HEX 1550 | -10/Exiles | Met EX-DEC 1556 | -10/Exiles | Learned location of Zion (-6) 1582 | -10/Exiles | Met EX-BIN 1602 | -10/Exiles | Aligned with FarCom system 1604 | -10/Exiles | Given EX-Vault access code 1638 | -10/Exiles | Opened EX-Vault 1646 | -10/Exiles | Found Longsword +1 1651 | -10/Exiles | Found AWS/Gauss 1681 | -10/Exiles | Warned to stay clear of 0b10 Research branches 1699 | -10/Exiles | Exiles lab attacked by MAIN.C 1766 | -10/Exiles | Attacked by the Exiles 1768 | -10/Exiles | Allies destroyed EX-BIN 1777 | -10/Exiles | Core integrity fell below 20% 1781 | -10/Exiles | Discovered new exit (range 14) 1788 | -10/Exiles | Destroyed by DAS Turret with DAS Cannon Last Messages --------------- 01736_ EX-DEC deploys DAS Turret. 01753_ EX-BIN: "Not cool, MAIN.C, I don't even have my SDF Cannon ready..." 01753_ Machine disabled. 01766_ EXILES: Additional hostile detected within perimeter. 01768_ EX-BIN: "I just want to science!" 01768_ EX-BIN: "You can't kill me, my evil twin will get revenge!" 01768_ EX-BIN destroyed. 01772_ HV Slug penetrates Machine. 01772_ HV Slug penetrates K8-EN4(g). 01774_ K8-EN4(g) suffers critical hit (Destroy). 01774_ K8-EN4(g) destroyed. 01774_ Com. Wheel destroyed. 01781_ EXIT=FOUND 01786_ Sml. Laser destroyed. 01787_ System corrupted: Imp. Ion Engine rejected. 01788_ Lgt. Treads destroyed. Map ----- +----------------------------------------------------+ | ???????????????????????????????????????????????? | | ???????????????????????????????????????????????? | | ???????????????????????????????????????????????? | | ???????????????????????????????????????????????? | | ???????????????????????????????????????????????? | | ???????????????????????????????????????????????? | | ???????????????????????????????????????????????? | | ???????????????????????????????????????????????? | | ???????????????????????????????????????????????? | | ???????????????????????????????????????????????? | | ???????????????????????????????????????????????? | | ???????????????????????????????????????????????? | | ????????????????####???????????????????????????? | | ???????????????## ???????????????????????????? | | ???????????????# ??????????????????????????? | | ???????????????# < ??????????????????????????? | | ???????????????# ??????????????????????????? | | ???????????????# ?????????????????????????? | | ???????????????# t ?????????????????????????? | | ????????????????# ?????????????????????????? | | ????????????????# #????????????????????????? | | ?????????????????# ?????????????#######????? | | ?????????????????# #######??????#!!! "#????? | | ?????????????????# #""##?????# "#????? | | ??????????????????# #?????# "#????? | | ??????????????????##" @ ##???## ""#????? | | ??????????????????#"" #####" ""#????? | | ??????????????????#### % % ##" ""#????? | | ?????????????????????## % #"" #??????? | | ??????????????????????#"## #??????? | | ??????????????????????####### !!! ##?????? | | ????????????????????????????### !=%!! "#?????? | | ?????????????????????????????#" !!![ ###???? | | ??????????????????????????""""" !=%! ##??? | | ???????????????????????! "### #### | | ???????????????????????! "#?##" " | | ??????????????????????#! ##??#" | | ??????????????????????# !""""""###???#"# | | ??????????????????????#########??????#### | | ????????????????????????????????????????### | | ??????????????????????????????????????????### | | ????????????????????????????????????????????## | | ?????????????????????????????????????????????## | | ??????????????????????????????????????????????## | | ???????????????????????????????????????????????# | | ???????????????????????????????????????????????# | | ???????????????????????????????????????????????" | | ???????????????????????????????????????????????" | | ???????????????????????????????????????????????" | | ???????????????????????????????????????????????? | +----------------------------------------------------+ Best States ------------- Heat Dissipation 25 Energy Generation 12 Energy Capacity 265 Matter Stores 300 Matter Capacity 300 Sight Range 16 Terrain Scan Density 10 Evasion (%) 40 Targeting Accuracy 5 Recoil Reduction 2 Item Schematics ----------------- None Robot Schematics ------------------ None Fabricated ------------ Nothing Repaired ---------- Lgt. Treads | 50% | -10/Materials Studied --------- None Alien Tech Used ----------------- None Achievements -------------- None Challenges ------------ None Game ------ Seed SupersonicCloakGun Manual? 0 Play Time 00:16:08 Cumulative 178.8 hours Start 2026.04.19 @ 13:29:36 End 2026.04.19 @ 13:46:37 Sessions 1 Manual Loads 0 Difficulty Rogue Special Mode None Game No. 112 Rogue 112 Adventurer 0 Explorer 0 Win Type - Total 5 Types 3/0/1/1/0/0/0/0/0/0 Lore% 63 Gallery% 55 Achievement% 49 Wizard Run 0 Options --------- Layout 2 ASCII 0 Keyboard 1 Movement Arrows Keybinds 0 Fullscreen 2 Font 24/Terminus Map View 50x44 Zoom Use 0% Tactical HUD 1 Map Filters NONE Filters NONE Steam 1 RUN: 96fa12a9-2b5a-4708-9402-3438594c105f